Cogmind - Beta 15 @@@ ROGUE MODE // 2025.06.27 @ 15:11:47 Player: Evie Result: Destroyed by S-10 Pest with Light Assault Rifle Performance ------------- Evolutions (0) 0 Regions Visited (2) 400 Robots Destroyed (26) 130 Value Destroyed (600) 600 Prototype IDs (0) 0 Alien Tech Used (0) 0 Bonus (0) 0 TOTAL SCORE: 1130 Bonus ------- None Cogmind --------- Core Integrity 0/250 Matter 300/300 Energy 160/160 System Corruption 0% Temperature Cool (0) Movement Walking (120) Location -10/Mines Parts ------- > --- POWER (1) -------- Light Nuclear Core > --- PROPULSION (2) --- Aluminum Leg Aluminum Leg > --- UTILITY (2) ------ Targeting Computer Core Shielding > --- WEAPON (2) ------- Medium Laser > --- INVENTORY (5) ---- Ion Engine Aluminum Leg Backup Propulsion I Flight Unit Light Assault Rifle Peak State ------------ > --- POWER ------------ Light Nuclear Core > --- PROPULSION ------- Aluminum Leg Aluminum Leg > --- UTILITY ---------- Targeting Computer Core Shielding > --- WEAPON ----------- Medium Laser > --- INVENTORY -------- Ion Engine Aluminum Leg Backup Propulsion I Flight Unit Light Assault Rifle [Rating: 8] Favorites ----------- Power Ion Engine Engine Ion Engine Power Core Light Nuclear Core Propulsion Aluminum Leg Leg Aluminum Leg Hover Unit Backup Propulsion I Utility Core Shielding Device Tractor Beam Storage Small Matter Pod Processor Targeting Computer Protection Core Shielding Weapon Medium Laser Energy Gun Medium Laser Launcher Grenade Launcher Build | -11 -10 -10 ------- Run | Yrd Mat Min Slots Evolved . | . . . Power . | . . . Propulsion . | . . . Utility . | . . . Weapon . | . . . Parts Attached 20 | 7 12 1 Power 4 | 1 2 1 Engine 3 | 1 2 . Core 1 | . . 1 Reactor . | . . . Propulsion 5 | 2 3 . Treads . | . . . Leg 5 | 2 3 . Wheel . | . . . Hover . | . . . Flight . | . . . Utility 4 | 1 3 . Device 1 | . 1 . Storage 1 | 1 . . Processor 1 | . 1 . Hackware . | . . . Protection 1 | . 1 . Artifact . | . . . Weapon 7 | 3 4 . Energy Gun 6 | 3 3 . Energy Cannon . | . . . Ballistic Gun . | . . . Ballistic Cannon . | . . . Launcher 1 | . 1 . Special Weapon . | . . . Impact Weapon . | . . . Slashing Weapon . | . . . Piercing Weapon . | . . . Special Melee Weapon . | . . . Unidentified Prototypes . | . . . Parts Lost 10 | . 8 2 Power 3 | . 2 1 Propulsion 1 | . 1 . Utility 2 | . 2 . Weapon 4 | . 3 1 Highest Loss Streak 4 | . 4 2 To Critical Strikes . | . . . Average Backups 3 | 2 3 4 Power . | . . 1 Propulsion 1 | 1 1 3 Utility . | . . . Weapon 1 | . 1 . Tool/Special . | . . . Unused Backups 11 | 2 5 4 Power 1 | . . 1 Propulsion 7 | 2 3 2 Utility 2 | . 2 . Weapon 1 | . . 1 Tool/Special . | . . . Average Slot Usage (%) 87 | . 86 92 Engine 10 | . 11 7 Core 1 | . . 5 Leg 27 | . 26 28 Device 2 | . 2 . Storage 4 | . 5 . Processor 6 | . 4 14 Protection 7 | . 6 14 Energy Gun 22 | . 23 14 Launcher 4 | . 3 7 Peak Build Rating 8 | 6 7 8 Average Rating 5 | 3 6 7 On Entrance 4 | . 6 7 Naked Turns . | . . . Heaviest Build 11 | 8 11 11 Greatest Support 20 | 20 20 20 Greatest Overweight (x) 1 | . 1 . Average Overweight (x) . | . . . Largest Inventory Capacity 5 | 5 5 5 Average Capacity 5 | 5 5 5 Most Carried 5 | 5 5 5 Average Carried 3 | 2 3 4 Final Capacity 5 | 5 5 5 Final Carried 5 | 1 4 5 Class Distribution -------------------- 100% | Mutant Dominant Class ---------------- Mutant | -10/Materials Mutant | -10/Mines Resources | -11 -10 -10 ----------- Run | Yrd Mat Min Matter Collected 559 | 284 245 30 Remotely 30 | . 30 . Salvage Created 863 | 56 681 126 Parts 39 | 3 33 3 Haulers Intercepted 1 | . 1 . Recyclers Shooed 3 | . 3 . Parts Field Recycled . | . . . Retrieved Matter . | . . . Parts Self-Destructed . | . . . Prevented . | . . . Kills | -11 -10 -10 ------- Run | Yrd Mat Min Combat Hostiles Destroyed 18 | 1 13 4 Guns 16 | 1 11 4 AOE 2 | . 2 . Classes Destroyed 6 | 2 4 . Worker 3 | 1 2 . Hauler 1 | . 1 . Recycler 2 | . 2 . Watcher 2 | . 2 . Swarmer 5 | . 3 2 Grunt 13 | 1 10 2 Best Kill Streak 6 | 2 6 2 Combat Bots Only 5 | 1 5 2 Max Kills in Single Turn 2 | 1 2 1 Gunslinging . | . . . Exploded 2 | . 2 . Melee . | . . . Uniques/NPCs Destroyed . | . . . Combat | -11 -10 -10 -------- Run | Yrd Mat Min Hostile Shots Fired 115 | 1 78 36 Missed 29 | 1 17 11 Hits 86 | . 61 25 Projectile 86 | . 61 25 Damage Taken 1134 | . 873 261 Core 257 | . 201 56 Absorbed by Shields . | . . . Redirected to Shielding 17 | . 6 11 Regen/Repaired (Parts) 82 | . 82 . Core Remaining (%) 100 | 100 . . Volleys Fired 71 | 3 53 15 Largest 2 | 2 2 1 Hottest 100 | 80 100 50 Shots Fired 114 | 6 93 15 Gun 111 | 6 90 15 Cannon . | . . . Launcher 3 | . 3 . Special . | . . . Kinetic . | . . . Thermal 64 | . 49 15 Explosive 3 | . 3 . Electromagnetic 47 | 6 41 . Robot Hit Streak 15 | 2 15 8 Robot Miss Streak 3 | 2 3 1 Penetration Max . | . . . Secondary Targets . | . . . Shots Hit Robots 73 | 2 60 11 Core Hits 41 | 2 32 7 Critical Kills . | . . . Critical Parts Destroyed . | . . . Critical Strikes 3 | . 1 2 Burn 3 | . 1 2 Melee Attacks . | . . . Impact . | . . . Slashing . | . . . Piercing . | . . . Sneak Attacks . | . . . Combat Hostiles . | . . . Follow-up Attacks . | . . . Damage Inflicted 1346 | 28 1178 140 Guns 965 | 28 797 140 Cannons . | . . . Explosions 379 | . 379 . Melee . | . . . Ramming 2 | . 2 . Kinetic . | . . . Thermal 523 | . 383 140 Explosive 346 | . 346 . Electromagnetic 475 | 28 447 . Impact . | . . . Slashing . | . . . Piercing . | . . . Highest Corruption . | . . . Average Corruption . | . . . Corruption Purged . | . . . Corruption Blocked . | . . . Overload Shots . | . . . Overflow Damage 73 | . 73 . Projectiles . | . . . Explosions 73 | . 73 . Melee . | . . . Knockbacks . | . . . Impact . | . . . Kinetic . | . . . Secondary . | . . . Self-Inflicted Damage 158 | . 158 . Shots 2 | . 2 . Rammed . | . . . Targets Rammed 1 | . 1 . Kicked 1 | . 1 . Crushed . | . . . Highest Temperature 264 | 36 264 75 Average Temperature 74 | 18 83 40 Received Heat Transfer 417 | . 342 75 Effects 2 | . 2 . Interference 2 | . 2 . Siege Activations . | . . . Martial Activations . | . . . Shielding Activations . | . . . Robots Disrupted . | . . . Combat Hostiles . | . . . Robots Corrupted . | . . . Combat Hostiles . | . . . Parts Fried 2 | . 2 . Impact Corruptions . | . . . Robots Melted . | . . . Combat Hostiles . | . . . Parts Melted 1 | . 1 . Heat Transferred 1609 | . 1054 555 Parts Sabotaged . | . . . Parts Stolen . | . . . Parts Stripped . | . . . Power Chain Reactions 1 | . 1 . Alert | -11 -10 -10 ------- Run | Yrd Mat Min Maximum Alert Level . | . . . Low Security (%) 100 | 100 100 100 Level 1 . | . . . Level 2 . | . . . Level 3 . | . . . Level 4 . | . . . Level 5 . | . . . High Security . | . . . Max Security . | . . . Peak Influence 128 | 20 128 67 Initial 17 | . 6 17 Average 53 | 2 63 44 Influence Increases 571 | 25 431 115 Destroy 0b10 Robot/C 360 | 20 260 80 Destroy 0b10 Robot/NC 40 | 5 35 . Destroy Leader 76 | . 56 20 Successful Hack 10 | . 10 . Disable Machine 30 | . 30 . Destroy Structure 40 | . 40 . Lose Combat Pursuer 15 | . . 15 Influence Decreases 549 | 15 396 138 Entered New Map 32 | . 4 28 Time Decay 417 | 15 312 90 Lost Part 100 | . 80 20 Squads Dispatched 3 | . 3 . Investigation 3 | . 3 . Extermination . | . . . Reinforcement . | . . . Assault . | . . . Garrison . | . . . Intercept . | . . . Searches Triggered . | . . . Construction Impeded . | . . . Haulers Reinforced . | . . . Active Scanning Responses . | . . . Cargo Convoy Interrupts . | . . . Stealth | -11 -10 -10 --------- Run | Yrd Mat Min Distress Signals 1 | . 1 . Communications Jammed . | . . . Distress Signals . | . . . Times Spotted 32 | 1 19 12 Peak Tracking Total 5 | 1 5 3 Tactical Retreats 1 | . . 1 Traps | -11 -10 -10 ------- Run | Yrd Mat Min Traps Triggered 2 | . 2 . Indirectly . | . . . Trap Hack Attempts . | . . . Triggered . | . . . Disarmed . | . . . Reprogrammed . | . . . Reused . | . . . Traps Extracted . | . . . Installed . | . . . Triggered . | . . . Machines | -11 -10 -10 ---------- Run | Yrd Mat Min Machines Disabled 2 | . 2 . Max in Single Turn 2 | . 2 . Machines Repaired . | . . . Machines Dismantled . | . . . Machines Sabotaged . | . . . Overloaded Fab Kills . | . . . Hacking | -11 -10 -10 --------- Run | Yrd Mat Min Machines Accessed 6 | . 6 . Terminals 4 | . 4 . Fabricators . | . . . Repair Stations 1 | . 1 . Recycling Units 1 | . 1 . Scanalyzers . | . . . Garrison Access . | . . . Total Hacks 21 | . 21 . Successful 13 | . 13 . Failed 8 | . 8 . Catastrophic . | . . . Database Lockouts . | . . . Manual 3 | . 3 . Terminals 11 | . 11 . Fabricators . | . . . Repair Stations 5 | . 5 . Recycling Units 5 | . 5 . Scanalyzers . | . . . Garrison Access . | . . . Terminal Hacks 7 | . 7 . Record 5 | . 5 . Alert Level 1 | . 1 . Assault Status 1 | . 1 . Fabricator Hacks . | . . . Repair Station Hacks 3 | . 3 . Scan Component 1 | . 1 . Repair 1 | . 1 . Refit 1 | . 1 . Recycling Unit Hacks 3 | . 3 . Recycle Component 1 | . 1 . Process 1 | . 1 . Report Inventory 1 | . 1 . Scanalyzer . | . . . Garrison Access Hacks . | . . . Unauthorized Hacks . | . . . Terminals . | . . . Fabricators . | . . . Repair Stations . | . . . Recycling Units . | . . . Scanalyzers . | . . . Garrison Access . | . . . Data Cores Recovered . | . . . Used . | . . . Hacking Detections 6 | . 6 . Full Trace Events 2 | . 2 . Feedback Events . | . . . Feedback Blocked . | . . . Robot Schematics Acquired . | . . . Robots Built . | . . . Authchips . | . . . Time . | . . . Total Robot Build Rating . | . . . Part Schematics Acquired . | . . . Parts Built . | . . . Authchips . | . . . Time . | . . . Total Part Build Rating . | . . . Parts Repaired 1 | . 1 . Time 26 | . 26 . Parts Recycled 1 | . 1 . Recycled Matter 176 | . 176 . Retrieved Matter . | . . . Retrieved Components . | . . . Parts Scanalyzed . | . . . Part Schematics Acquired . | . . . Parts Damaged . | . . . Bothacking | -11 -10 -10 ------------ Run | Yrd Mat Min Used RIF Installer . | . . . Robots Hacked . | . . . Non-combat . | . . . Combat . | . . . Robot Hacks Applied . | . . . Relay Couplers Released . | . . . Fabnet Peak Effective % . | . . . Robots Rewired . | . . . Allies Hacked . | . . . Hacks Repelled . | . . . Allies | -11 -10 -10 -------- Run | Yrd Mat Min Total Allies . | . . . Largest Group . | . . . Highest-Rated Group . | . . . Highest-Rated Ally . | . . . Total Orders . | . . . Ally Attacks . | . . . Total Damage . | . . . Kills . | . . . Allies Corrupted . | . . . Allies Melted . | . . . Intel | -11 -10 -10 ------- Run | Yrd Mat Min Active Infowar (turns) . | . . . Robot Analysis Total . | . . . Derelict Logs Recovered . | . . . Drone Launches . | . . . Drone Recoveries . | . . . Exploration | -11 -10 -10 ------------- Run | Yrd Mat Min Turns Passed 1142 | 131 824 187 Spaces Moved 743 | 119 497 127 Core 57 | 57 . . Treads . | . . . Legs 681 | 62 492 127 Wheels . | . . . Hover 5 | . 5 . Flight . | . . . Fastest Speed 50 | 50 120 120 Average Speed 114 | 86 120 120 Slowest Speed 170 | 120 170 120 Overloaded Moves . | . . . Propulsion Burnouts . | . . . Robots Hopped . | . . . Potential Cave-ins . | . . . Cave-ins Triggered . | . . . Exploration Rate (%) 29 | 5 59 25 Regions Visited 2 Branch Regions 1 Pre-discovered Areas . | . . . Known Exits Taken . | . . . Unknown Exits Taken 2 | 1 1 . Scrap Searched . | . . . Spaces Dug . | . . . Terrain Destroyed 56 | . 56 . Melee . | . . . Projectile . | . . . AOE 56 | . 56 . Terrain Rammed . | . . . Walls Destroyed . | . . . Machines Disabled . | . . . Actions | -11 -10 -10 --------- Run | Yrd Mat Min Total 920 | 143 631 146 Wait 36 | . 36 . Move 741 | 118 496 127 Hop . | . . . Pick Up 33 | 11 20 2 Fast Attach 1 | . . 1 Attach 18 | 7 11 . Detach 2 | . 2 . Swap 5 | . 5 . Drop 12 | 4 7 1 Fire 71 | 3 53 15 Melee . | . . . Ram . | . . . Kick 1 | . 1 . Crush . | . . . Escape Stasis . | . . . Rewire . | . . . Trap . | . . . Miscellaneous . | . . . Route ------- -11/Scrapyard -10/Materials (discovered 2 exits: [*Mat] / [*Min]) -10/Mines History --------- Turn | Location | Event 2 | -11/Scrapyard | Met Revision 17 92 | -11/Scrapyard | Discovered new exit (range 8) 132 | -11/Scrapyard | Entered Materials 341 | -10/Materials | Build established: Mutant 407 | -10/Materials | Lost 4 parts (1p1n1u1w) 423 | -10/Materials | Discovered new exit (range 10) 444 | -10/Materials | Core integrity fell below 50% 751 | -10/Materials | Discovered new exit (range 16) 812 | -10/Materials | Core integrity fell below 20% 912 | -10/Materials | Repaired Aluminum Leg 956 | -10/Materials | Entered Mines 1143 | -10/Mines | Destroyed by S-10 Pest with Light Assault Rifle Last Messages --------------- S-10 Pest destroyed. S-10 Pest suffers critical hit (Burn). S-10 Pest destroyed. Acquired 13 matter. Acquired Lgt. Assault Rifle. Acquired 7 matter. K-01 Serf collects debris. G-47 Trooper suffers critical hit (Burn). Grenade Launcher destroyed. K-01 Serf collects debris. Ion Engine destroyed. G-47 Trooper destroyed. G-34 Mercenary destroyed. Acquired Lgt. Nuclear Core. Acquired 10 matter. Dropped Aluminum Leg. Acquired Aluminum Leg. K-01 Serf collects debris. S-10 Pest destroyed. [Achievement: First Step to Greatness] Map ----- +----------------------------------------------------+ | ???????????????????????????????????????????????? | | ???????????????????????????????????????????????? | | ???????????????????????????????????????????????? | | ???????????????????????????????????????????????? | | ???????????????????????????????????????????????? | | ???????????????????????????????????????????????? | | ???????????????????????????????????????????????? | | ???????????????????????????????????????????????? | | ???????????????????? ???????????????????????? | | ?????????????????? ???????????????????????? | | ???????????????## ??????????###########??? | | ??????????????## ?????????# #??? | | ??????????????? ?????????# """ """ #??? | | ??????????????? *% ?????????# """ """ #??? | | ???????????????? ??????????# """ """ #??? | | ????????????????? ??????????# """ """ #??? | | ?????????????????# ??????????# #??? | | ?????????????????#s #??????????# #??? | | ????????????????## s #??????????## #######??? | | ????????????????# ##??????????# #????????? | | ????????????????# #???????#### #????????? | | ????????????????# """ #???????# #????????? | | ???????????????## """ #???????# #????????? | | ???????????????# """ #######?# ####????????? | | ???????????????# ## #?# #???????????? | | ???????????????## @ #?# #???????????? | | ????????????????## # #?# #####???????? | | ?????????????????# # ##?# ## ##??????? | | ?????????????????# # #### # #??????? | | ?????????????????# ## #??????? | | ?????????????????# ### = #??????? | | ?????????????????# #?# ## % ##??????? | | ?????????????????# #?# ####% #???????? | | ?????????????????# #?# ##?# ##??????? | | ?????????????????# #?## ### ##?????? | | ?????????????????# #??### #?????? | | ?????????????????# #????## #?????? | | ????????????????## #?????## ##?????? | | ???????????????## % ###????## ####??????? | | ???????????????# [% #?????## ##?????????? | | ???????????????# #??????########??????????? | | ???????????????## = #????????????????????????? | | ????????????????## #????????????????????????? | | ?????????????????### #????????????????????????? | | ???????????????????# #????????????????????????? | | ???????????????????# #????????????????????????? | | ???????????????????# ######## ""???????????? | | ???????????????????# ""???????????? | | ???????????????????########### ""???????????? | | ???????????????????????????????????????????????? | +----------------------------------------------------+ Best States ------------- Heat Dissipation 25 Energy Generation 14 Energy Capacity 250 Matter Stores 350 Matter Capacity 350 Sight Range 16 Terrain Scan Density 10 Core Shielding 20 Evasion (%) 55 Targeting Accuracy 5 Item Schematics ----------------- None Robot Schematics ------------------ None Fabricated ------------ Nothing Repaired ---------- Aluminum Leg | 8% | -10/Materials Alien Tech Used ----------------- None Achievements -------------- Crack Shot First Step to Greatness Loot Pinata One Hack Too Far Part-time Mechanic Challenges ------------ None Game ------ Seed AntimatterRingNanovents Manual? 0 Play Time 00:36:55 Cumulative 0.5 hours Start 2025.06.27 @ 14:19:39 End 2025.06.27 @ 15:11:47 Sessions 1 Manual Loads 0 Difficulty Rogue Special Mode None Game No. 1 Rogue 1 Adventurer 0 Explorer 0 Win Type - Total 0 Types 0/0/0/0/0/0/0/0/0/0 Lore% 0 Gallery% 1 Achievement% 1 Wizard Run 0 Options --------- Layout 1 ASCII 0 Keyboard 0 Movement Mouse Keybinds 0 Fullscreen 1 Font 32/Smallcaps Map View 50x35 Zoom Use 0% Tactical HUD 0 Map Filters NONE Filters NONE Steam 1 RUN: 6c77ef3d-958a-48af-be37-2e52580a313b